bitfinex-derivatives/quotes_SOLF0:USTF0_20240905
["timestamp","ask_amount","ask_price","bid_price","bid_amount"]
[1725494401263,0.05114564,133.64,133.61,0.05310821]
[1725494403364,0.05114564,133.64,133.53,1.4105]
[1725494403565,1.3773,133.66,133.54,1.4144]
[1725494403961,1.3773,133.66,133.53,1.4105]
[1725494404357,0.05750503,133.61,133.58,0.05740162]
[1725494404771,1.3773,133.66,133.51,3.47476856]
[1725494405663,0.05477238,133.6,133.57,0.04919435]
[1725494405862,0.04920021,133.6,133.51,3.47476856]
[1725494406067,1.3773,133.66,133.51,3.47476856]
[1725494406468,0.04779531,133.6,133.57,0.04754226]
[1725494406768,1.3773,133.66,133.51,3.47476856]
[1725494407661,0.05221394,133.6,133.57,0.05032909]
[1725494407864,1.3773,133.66,133.51,3.47476856]
[1725494408868,0.05186102,133.6,133.57,0.0555263]
[1725494409071,0.05556425,133.6,133.57,0.05162645]
[1725494409269,1.3773,133.66,133.51,3.47476856]
[1725494409969,9.2,133.53,133.51,3.47476856]
[1725494410166,9.24732113,133.53,133.51,3.52726173]
[1725494411367,0.04732113,133.53,133.51,12.72726173]
[1725494411567,228.0,133.62,133.52,9.2]
[1725494411761,9.2,133.59,133.53,9.2]
[1725494412268,9.2,133.62,133.55,9.2]
[1725494412465,36.8,133.67,133.55,9.2]
[1725494412664,230.7681,133.68,133.57,0.04970968]
[1725494412665,0.05498323,133.6,133.57,0.04970968]
[1725494412870,0.04730005,133.6,133.57,0.05592891]
[1725494413067,0.04730005,133.6,133.57,9.25592891]
[1725494413269,0.04730005,133.6,133.58,9.2]
[1725494413465,0.04730005,133.6,133.59,9.2]
[1725494413667,10.608,133.68,133.59,9.2]
[1725494413862,9.2,133.68,133.62,9.2]
[1725494414166,4.0486,133.72,133.62,9.2]
[1725494414365,9.2,133.65,133.59,10.5354]
[1725494414562,0.05546822,133.63,133.61,0.0501407]
[1725494416274,0.05546822,133.63,133.61,9.2501407]
[1725494417371,0.05546822,133.63,133.62,9.2]
[1725494417673,9.2,133.7,133.62,9.2]
[1725494418368,9.2,133.69,133.62,9.2]
[1725494418674,0.05752828,133.67,133.64,0.05404481]
[1725494422975,9.2,133.65,133.64,0.05404481]
[1725494423172,9.25752828,133.67,133.64,0.05404481]
[1725494429276,9.2,133.65,133.64,0.05404481]
[1725494430176,9.25752828,133.67,133.64,0.05404481]
[1725494431673,3.7411,133.66,133.64,0.05404481]
[1725494432478,3.7413,133.65,133.64,0.05404481]
[1725494433077,3.741,133.66,133.64,0.05404481]
[1725494434182,3.79832828,133.67,133.64,3.79554481]
[1725494434384,3.79832828,133.67,133.64,0.05404481]
[1725494434879,0.05752828,133.67,133.65,3.7412]
[1725494435781,0.05752828,133.67,133.66,3.741]
[1725494455581,9.25752828,133.67,133.64,0.05404481]
[1725494455786,0.05752828,133.67,133.64,0.05404481]
[1725494455985,12.9413,133.65,133.64,0.05404481]
[1725494461890,3.7413,133.65,133.64,0.05404481]
[1725494462494,12.9413,133.65,133.64,0.05404481]
[1725494463289,3.7413,133.65,133.64,0.05404481]
[1725494470501,12.9411,133.66,133.64,0.05404481]
[1725494470707,3.7411,133.66,133.64,0.05404481]
[1725494471411,3.7413,133.65,133.64,0.05404481]
[1725494474812,3.7411,133.66,133.64,0.05404481]
[1725494475511,3.7411,133.66,133.64,3.79554481]
[1725494475913,0.05752828,133.67,133.64,0.05404481]
[1725494476109,0.05752828,133.67,133.66,3.741]
[1725494476406,0.05752828,133.67,133.64,0.05404481]
[1725494478207,0.05752828,133.67,133.65,3.7411]
[1725494479518,0.05752828,133.67,133.64,0.05404481]
[1725494480207,0.05752828,133.67,133.65,3.741]
[1725494481817,0.05752828,133.67,133.66,3.741]
[1725494484009,0.05752828,133.67,133.66,12.941]
[1725494485517,2.8351,133.74,133.66,9.2]
[1725494485822,2.8351,133.74,133.69,9.2]
[1725494485823,3.7392,133.73,133.69,9.2]
[1725494486020,3.7392,133.73,133.69,12.94]
[1725494486420,107.46900832,133.72,133.69,12.99124602]
[1725494487015,111.20850832,133.72,133.69,0.05124602]
[1725494487915,111.20850832,133.72,133.69,3.79134602]
[1725494489825,111.20850832,133.72,133.7,3.7398]
[1725494493426,107.46900832,133.72,133.7,3.7398]
[1725494493826,107.46900832,133.72,133.69,9.25124602]
[1725494493827,107.46900832,133.72,133.69,12.99114602]
[1725494494029,107.46900832,133.72,133.69,3.79114602]
[1725494494329,111.20840832,133.72,133.69,3.79114602]
[1725494495124,111.20840832,133.72,133.7,3.7398]
[1725494495125,107.46900832,133.72,133.7,3.7398]
[1725494495628,107.46900832,133.72,133.71,3.7396]
[1725494496731,0.04750224,133.72,133.71,3.7396]
[1725494500929,0.04750224,133.72,133.71,12.9396]
[1725494504624,9.2,133.8,133.73,3.7389]
[1725494504833,3.7381,133.77,133.74,9.2]
[1725494505326,9.2,133.78,133.72,12.939]
[1725494505531,9.2,133.78,133.74,0.05749788]
[1725494505836,3.78695123,133.76,133.74,0.05749788]
[1725494506132,0.05482789,133.76,133.74,9.25749788]
[1725494506330,0.05482789,133.76,133.74,0.05749788]
[1725494507133,3.79312789,133.76,133.74,0.05749788]
[1725494509439,3.79312789,133.76,133.74,3.79619788]
[1725494511538,3.79312789,133.76,133.74,0.05749788]
[1725494519857,0.05482789,133.76,133.74,3.79609788]
[1725494521451,3.79302789,133.76,133.74,3.79609788]
[1725494521957,3.7385,133.75,133.74,0.05749788]
[1725494524061,3.7393,133.72,133.69,9.2]
[1725494524652,3.7392,133.73,133.69,12.9399]
[1725494524858,3.7392,133.73,133.69,9.2]
[1725494525057,0.04812139,133.72,133.7,0.05018435]
[1725494526357,3.78742139,133.72,133.7,0.05018435]
[1725494527364,3.7396,133.71,133.7,0.05018435]
[1725494527765,9.2,133.71,133.63,9.2]
[1725494527966,3.7406,133.68,133.64,3.7415]
[1725494528863,3.78800996,133.67,133.65,0.04812528]
[1725494529267,3.78800996,133.67,133.66,9.2]
[1725494529467,3.78800996,133.67,133.65,9.24812528]
[1725494529765,0.04720996,133.67,133.65,9.24812528]
[1725494530466,0.04720996,133.67,133.65,12.98932528]
[1725494530862,0.04720996,133.67,133.65,0.04812528]
[1725494531370,3.741,133.66,133.65,0.04812528]
[1725494532765,9.24720996,133.67,133.58,9.2]
[1725494532969,9.2,133.64,133.58,12.943]
[1725494533668,3.79221495,133.62,133.6,0.05499685]
[1725494535263,3.7424,133.61,133.6,0.05499685]
[1725494535463,3.7424,133.61,133.55,1.3074]
[1725494535464,9.2,133.61,133.55,9.2]
[1725494535866,9.2,133.6,133.55,9.2]
[1725494536567,0.05525822,133.59,133.56,0.04778358]
[1725494536967,3.7434,133.58,133.56,0.04778358]
[1725494540474,3.7435,133.57,133.56,0.04778358]
[1725494541773,0.05525822,133.59,133.56,0.04778358]
[1725494542167,3.7435,133.57,133.56,0.04778358]
[1725494542466,9.2,133.57,133.5,9.2]
[1725494542774,1.3306,133.6,133.52,11.51]
[1725494542775,3.7442,133.55,133.52,11.51]
[1725494542973,11.51,133.58,133.52,11.51]
[1725494543268,3.79773471,133.56,133.54,0.0512733]
[1725494543571,0.05393471,133.56,133.54,0.05432413]
[1725494543769,3.79783471,133.56,133.54,0.05432413]
[1725494544073,0.05393471,133.56,133.54,0.05432413]
[1725494544874,0.05393471,133.56,133.55,11.51]
[1725494545469,0.05393471,133.56,133.55,15.2541]
[1725494545978,3.7425,133.61,133.57,3.7435]
[1725494546178,3.7425,133.61,133.58,11.51]
[1725494546679,11.51,133.65,133.59,11.51]
[1725494547073,11.51,133.65,133.61,0.04914048]
[1725494547074,0.04906581,133.63,133.61,0.04914048]
[1725494548280,3.7422,133.62,133.61,0.04914048]
[1725494548582,0.04906581,133.63,133.61,0.04914048]
[1725494550375,0.04906581,133.63,133.61,28.78914048]
[1725494550578,0.04906581,133.63,133.62,3.7421]
[1725494551676,3.7405,133.68,133.62,1.4342]
[1725494551883,3.7405,133.68,133.64,28.74]
[1725494552581,0.05172718,133.67,133.65,0.04903837]
[1725494553272,0.05172718,133.67,133.65,3.79023837]
[1725494553876,0.05172718,133.67,133.65,0.04903837]
[1725494554384,3.7396,133.71,133.66,28.74]
[1725494554874,3.7396,133.71,133.67,3.7405]
[1725494555077,3.7394,133.72,133.66,28.74]
[1725494555280,3.7394,133.72,133.67,28.74]
[1725494555478,0.05362552,133.7,133.68,3.79367132]
[1725494556277,0.05362552,133.7,133.68,0.05347132]
[1725494557279,0.05362552,133.7,133.53,8.24830925]
[1725494557481,28.74,133.68,133.59,28.74]
[1725494557877,3.7414,133.65,133.6,3.7425]
[1725494558479,28.74,133.68,133.61,0.05739992]
[1725494558480,3.79808509,133.64,133.61,0.05739992]
[1725494558881,3.79808509,133.64,133.61,3.79969992]
[1725494559183,0.05658509,133.64,133.61,32.53969992]
[1725494559985,0.05658509,133.64,133.62,3.7421]
[1725494561284,0.05658509,133.64,133.63,3.7418]
[1725494561487,0.05658509,133.64,133.61,28.79739992]
[1725494562183,0.05658509,133.64,133.63,3.7418]
[1725494562584,3.7405,133.68,133.64,3.7414]
[1725494563182,3.7406,133.68,133.64,3.7414]
[1725494563483,0.04750381,133.67,133.65,0.05041037]
[1725494564187,3.78830381,133.67,133.65,0.05041037]
[1725494565192,3.741,133.66,133.65,0.05041037]
[1725494581714,31.436,133.67,133.58,1.3127]
[1725494582600,0.04882173,133.64,133.61,0.04758855]
[1725494584105,3.7421,133.62,133.61,0.04758855]
[1725494587105,0.04882173,133.64,133.61,0.04758855]
[1725494587106,3.742,133.63,133.61,0.04758855]
[1725494587302,0.04882173,133.64,133.61,28.78758855]
[1725494587906,0.04882173,133.64,133.63,28.74]
[1725494588205,0.04882173,133.64,133.61,0.04758855]
[1725494588706,3.7421,133.62,133.61,0.04758855]
[1725494598509,28.74,133.62,133.54,1.3343]
[1725494598707,28.74,133.59,133.52,1.3111]
[1725494599109,3.7441,133.55,133.52,5.0558]
[1725494599404,28.74,133.59,133.52,1.3111]
[1725494599604,3.744,133.56,133.54,0.05592023]
[1725494600505,3.7441,133.55,133.54,0.05592023]
[1725494606021,32.4841,133.55,133.54,0.05592023]
[1725494606220,28.74,133.55,133.47,1.4241]
[1725494606520,28.74,133.55,133.5,3.7454]
[1725494606714,3.7448,133.53,133.5,3.7454]
[1725494607114,3.7448,133.53,133.47,31.6063]
[1725494607115,28.74,133.56,133.47,31.6063]
[1725494607320,3.80097246,133.52,133.49,3.79390668]
[1725494607816,3.80097246,133.52,133.5,3.7455]
[1725494608914,3.80097246,133.52,133.49,0.04830668]
[1725494608915,0.05607246,133.52,133.49,0.04830668]
[1725494609628,3.80107246,133.52,133.49,3.79390668]
[1725494611218,0.05607246,133.52,133.5,3.7454]
[1725494612721,0.05607246,133.52,133.5,3.7455]
[1725494613221,0.05607246,133.52,133.49,0.04830668]
[1725494613519,0.05607246,133.52,133.5,3.7455]
[1725494613715,0.05607246,133.52,133.49,28.78830668]
[1725494613919,30.1788,133.58,133.49,28.74]
[1725494613920,28.74,133.58,133.49,28.74]
[1725494614109,3.7442,133.55,133.49,28.74]
[1725494614516,28.74,133.58,133.49,28.74]
[1725494615020,3.7933931,133.55,133.52,0.04883148]
[1725494615810,3.7933931,133.55,133.52,3.79363148]
[1725494616018,3.7445,133.54,133.52,0.04883148]
[1725494617415,7.1045,133.54,133.52,0.04883148]
[1725494618023,7.1045,133.54,133.52,3.79373148]
[1725494618218,3.36,133.54,133.52,3.79373148]
[1725494618620,7.1045,133.54,133.52,0.04883148]
[1725494619125,12.2445,133.54,133.52,0.04883148]
[1725494620724,8.5,133.54,133.52,3.79353148]
[1725494622327,12.2444,133.54,133.52,3.79353148]
[1725494626430,12.2444,133.54,133.52,0.04883148]
[1725494641442,7.69,133.53,133.52,0.04883148]
[1725494645347,11.4346,133.53,133.52,0.04883148]
[1725494645750,22.9446,133.53,133.52,0.04883148]
[1725494647049,26.3046,133.53,133.52,0.04883148]
[1725494649656,14.7946,133.53,133.52,0.04883148]
[1725494649858,20.5746,133.53,133.52,0.04883148]
[1725494650052,16.83,133.53,133.52,0.04883148]
[1725494654463,16.83,133.53,133.52,3.79373148]
[1725494655666,16.83,133.53,133.52,0.04883148]
[1725494656562,20.5746,133.53,133.52,0.04883148]
[1725494665274,32.0846,133.53,133.52,0.04883148]
[1725494680792,3.7459,133.49,133.47,3.7461]
[1725494681487,3.7459,133.49,133.46,3.7464]
[1725494681790,3.80119508,133.49,133.46,3.80103215]
[1725494682587,10.63119508,133.49,133.46,3.80103215]
[1725494682784,20.20119508,133.49,133.46,3.80103215]
[1725494683583,3.7463,133.47,133.46,0.05463215]
[1725494691296,11.51,133.48,133.46,0.05463215]
[1725494691297,15.2562,133.48,133.46,0.05463215]
[1725494691600,16.45529508,133.49,133.46,0.05463215]
[1725494691795,16.45529508,133.49,133.46,1.42983215]
[1725494691999,16.45529508,133.49,133.46,5.17623215]
[1725494692292,20.20119508,133.49,133.46,5.17623215]
[1725494692692,16.45529508,133.49,133.47,3.7461]
[1725494692894,16.45529508,133.49,133.46,12.93983215]
[1725494693099,16.45529508,133.49,133.47,14.3535]
[1725494693300,16.45529508,133.49,133.48,3.746]
[1725494693495,21.85529508,133.49,133.48,3.746]
[1725494696706,19.68289508,133.49,133.48,3.746]
[1725494696904,14.97,133.49,133.48,3.746]
[1725494700300,14.97,133.49,133.47,5.1932]
[1725494700703,14.97,133.49,133.47,1.4471]
[1725494701814,14.97,133.49,133.48,3.746]
[1725494702121,14.97,133.49,133.48,15.256]
[1725494702807,6.2792,133.49,133.48,15.256]
[1725494706012,5.4,133.49,133.48,15.256]
[1725494706810,6.88825347,133.5,133.49,3.7457]
[1725494707006,5.83,133.52,133.49,11.51]
[1725494707210,5.83,133.52,133.51,11.51]
[1725494707516,3.7431,133.59,133.55,3.7439]
[1725494708005,3.7431,133.59,133.56,0.05236443]
[1725494708006,0.05174669,133.58,133.56,0.05236443]
[1725494708609,6.03174669,133.58,133.56,0.05236443]
[1725494708806,11.19174669,133.58,133.56,0.05236443]
[1725494709512,11.19174669,133.58,133.57,3.7435]
[1725494709713,12.07174669,133.58,133.56,0.05236443]
[1725494710410,12.07174669,133.58,133.56,3.79586443]
[1725494711010,18.05174669,133.58,133.56,3.79586443]
[1725494711612,20.86174669,133.58,133.56,3.79586443]
[1725494711813,20.86174669,133.58,133.57,3.7435]
[1725494721428,20.86174669,133.58,133.56,3.79596443]
[1725494724329,20.86174669,133.58,133.4,11.73076712]
[1725494724636,11.51,133.57,133.5,11.51]
[1725494724936,3.7442,133.55,133.5,11.51]
[1725494725436,0.04928581,133.54,133.52,3.7449]
[1725494726037,0.04928581,133.54,133.51,0.0536789]
[1725494726535,7.3,133.53,133.51,0.0536789]
[1725494728436,11.0447,133.53,133.51,0.0536789]
[1725494729037,7.3,133.53,133.51,3.7988789]
[1725494730241,2.81,133.52,133.51,3.7988789]
[1725494730546,2.81,133.52,133.51,0.0536789]
[1725494730742,8.8,133.52,133.51,0.0536789]
[1725494731436,8.8,133.52,133.43,104.12410679]
[1725494731644,11.51,133.48,133.43,11.51]
[1725494731838,3.7463,133.47,133.43,11.51]
[1725494732040,3.7463,133.47,133.44,3.747]
[1725494732241,11.51,133.48,133.34,233.4994]
[1725494732440,0.05396527,133.44,133.43,11.51]
[1725494732741,0.05735901,133.45,133.43,15.2573]
[1725494734437,0.88,133.44,133.43,15.2573]
[1725494737849,5.19,133.44,133.43,15.2573]
[1725494738445,11.18,133.44,133.43,15.2573]
[1725494741344,18.0,133.44,133.43,15.2573]
[1725494743955,18.0,133.44,133.42,3.80093456]
[1725494745247,21.7473,133.44,133.42,0.05333456]
[1725494745452,21.7473,133.44,133.3,180.59121657]
[1725494745453,11.51,133.43,133.3,188.09341657]
[1725494745656,11.51,133.42,133.31,1.37755157]
[1725494745961,11.51,133.4,133.33,11.51]
[1725494746252,11.51,133.37,133.23,226.0]
[1725494746559,0.0539839,133.31,133.3,15.2609]
[1725494752158,0.9339839,133.31,133.3,15.2609]
[1725494753464,1.4325,133.39,133.3,11.51]
[1725494753651,1.4325,133.39,133.35,11.51]
[1725494753855,12.9425,133.39,133.26,46.04]
[1725494754060,11.51,133.38,133.33,11.51]
[1725494754259,11.51,133.38,133.31,11.51]
[1725494754457,0.04822174,133.36,133.33,0.05315491]
[1725494754656,0.04822174,133.36,133.33,3.80315491]
[1725494755361,6.03822174,133.36,133.33,3.80315491]
[1725494755557,10.35822174,133.36,133.33,3.80315491]
[1725494756563,10.35822174,133.36,133.34,3.7498]
[1725494757160,10.35822174,133.36,133.33,11.56315491]
[1725494757559,10.35822174,133.36,133.35,11.51]
[1725494758260,10.35822174,133.36,133.35,15.2597]
[1725494759057,13.17822174,133.36,133.35,15.2597]
[1725494760056,21.71822174,133.36,133.35,15.2597]
[1725494760564,2.7176,133.42,133.35,11.51]
[1725494760762,14.2276,133.42,133.35,11.51]
[1725494761266,2.7176,133.42,133.37,11.51]
[1725494761466,0.05764312,133.41,133.38,11.56377519]
[1725494761757,0.05764312,133.41,133.4,3.7483]
[1725494763067,6.04764312,133.41,133.4,3.7483]
[1725494763357,6.04764312,133.41,133.4,15.2583]
[1725494764166,1.4,133.42,133.41,3.748]
[1725494778491,1.9658136,133.43,133.4,28.77]
[1725494778697,1.9658136,133.43,133.42,32.5177]
[1725494783402,1.9658136,133.43,133.41,0.05540239]
[1725494784598,1.9658136,133.43,133.41,3.80330239]
[1725494785806,1.9658136,133.43,133.37,28.77]
[1725494786300,1.9658136,133.43,133.4,3.7481]
[1725494786689,1.9658136,133.43,133.4,3.7974657]
[1725494787897,1.9658136,133.43,133.41,11.51]
[1725494789604,1.9658136,133.43,133.4,3.7974657]
[1725494790603,5.7132136,133.43,133.4,0.0493657]
[1725494791506,1.9658136,133.43,133.36,109.80929998]
[1725494791708,1.9658136,133.43,133.36,121.31929998]
[1725494792197,3.7481,133.41,133.37,3.749]
[1725494792399,3.7481,133.41,133.38,0.04853334]
[1725494794101,1.92,133.4,133.38,0.04853334]
[1725494795005,1.92,133.4,133.38,15.30733334]
[1725494799603,1.92,133.4,133.39,11.51]
[1725494799803,1.92,133.4,133.39,15.2585]
[1725494802713,1.92,133.4,133.39,3.7485]
[1725494804117,1.92,133.4,133.38,0.04853334]
[1725494805117,1.92,133.4,133.38,3.79733334]
[1725494806113,1.92,133.4,133.38,0.04853334]
[1725494807115,1.92,133.4,133.38,3.79723334]
[1725494807508,1.92,133.4,133.38,0.04853334]
[1725494808415,1.92,133.4,133.39,3.7485]
[1725494808815,1.92,133.4,133.39,32.5385]
[1725494813628,1.92,133.4,133.39,3.7485]
[1725494813827,1.92,133.4,133.38,3.79723334]
[1725494818528,1.92,133.4,133.39,3.7485]
[1725494819334,1.92,133.4,133.38,3.79723334]
[1725494828941,1.92,133.4,133.39,3.7485]
[1725494829538,1.92,133.4,133.39,15.2685]
[1725494833752,1.92,133.4,133.38,3.79723334]
[1725494833949,1.92,133.4,133.38,0.04853334]
[1725494834539,1.92,133.4,133.38,3.79733334]
[1725494836049,1.92,133.4,133.29,104.46726506]
[1725494836246,2.7149,133.39,133.32,28.79]
[1725494837057,0.05111033,133.37,133.34,3.80328378]
[1725494838144,1.99111033,133.37,133.34,3.80328378]
[1725494840355,1.99111033,133.37,133.35,3.7496]
[1725494841554,1.99111033,133.37,133.36,3.7494]
[1725494848757,1.99111033,133.37,133.36,32.5394]
[1725494856068,1.99111033,133.37,133.36,15.2594]
[1725494867073,1.99111033,133.37,133.36,3.7494]
[1725494872982,1.99111033,133.37,133.36,15.2594]
[1725494875191,1.3208,133.41,133.36,11.51]
[1725494875488,2.7951,133.43,133.4,11.51]
[1725494876286,2.84597433,133.43,133.4,11.56166112]
[1725494876587,6.59337433,133.43,133.4,0.05166112]
[1725494877283,6.59337433,133.43,133.4,3.79986112]
[1725494878986,6.59337433,133.43,133.41,3.748]
[1725494881088,2.84597433,133.43,133.41,3.748]
[1725494881590,3.748,133.41,133.4,0.05166112]
[1725494881793,3.748,133.41,133.36,11.51]
[1725494881990,3.748,133.41,133.38,3.7488]
[1725494882392,3.7483,133.4,133.38,3.7488]
[1725494882790,3.79858502,133.4,133.38,0.04975158]
[1725494883390,11.51,133.39,133.24,10.97986856]
[1725494883589,11.51,133.34,133.28,11.51]
[1725494883797,3.7507,133.32,133.27,11.51]
[1725494883994,12.8606,133.33,133.2,20.24030531]
[1725494884293,0.0486019,133.28,133.26,11.51]
[1725494884492,0.0486019,133.28,133.26,11.56393484]
[1725494884493,0.05218572,133.28,133.26,11.56393484]
[1725494884890,1.3506,133.33,133.27,11.51]
[1725494885086,1.3506,133.33,133.3,11.51]
[1725494885991,1.39803513,133.33,133.3,11.56466878]
[1725494887092,1.39803513,133.33,133.3,15.31566878]
[1725494887797,0.04743513,133.33,133.32,11.51]
[1725494887986,0.04743513,133.33,133.27,11.51]
[1725494888188,11.51,133.34,133.27,11.51]
[1725494888383,3.7507,133.32,133.27,15.2619]
[1725494888995,0.04772404,133.31,133.28,0.0535256]
[1725494890587,0.04772404,133.31,133.29,11.51]
[1725494893195,0.04772404,133.31,133.3,11.51]
[1725494893688,0.04772404,133.31,133.3,15.2611]
[1725494895494,1.4328,133.36,133.3,11.51]
[1725494895798,1.4328,133.36,133.34,11.51]
[1725494896296,1.3508,133.41,133.34,11.51]
[1725494896496,2.7931,133.41,133.37,11.51]
[1725494896790,0.05387331,133.39,133.38,11.51]
[1725494897390,14.3031,133.47,133.38,11.51]
[1725494897588,14.3031,133.47,133.41,11.51]
[1725494897589,1.3553,133.46,133.41,11.51]
[1725494897801,1.3553,133.46,133.45,11.51]
[1725494898103,3.7454,133.51,133.45,3.7467]
[1725494898396,0.05347857,133.49,133.47,0.04805429]
[1725494898595,0.05347857,133.49,133.47,0.05649733]
[1725494899589,0.05347857,133.49,133.48,28.75]
[1725494900099,0.05347857,133.49,133.47,3.80269733]
[1725494900604,0.05347857,133.49,133.47,0.05649733]
[1725494904697,0.05347857,133.49,133.48,28.75]
[1725494907095,0.05347857,133.49,133.48,32.496]
[1725494916207,3.7441,133.55,133.5,3.7453]
[1725494916506,3.7441,133.55,133.51,28.75]
[1725494917106,0.0472569,133.54,133.52,0.04724877]
[1725494919211,3.7916569,133.54,133.52,0.04724877]
[1725494922212,0.0472569,133.54,133.52,3.79204877]
[1725494923306,3.7916569,133.54,133.52,3.79204877]
[1725494923506,3.7916569,133.54,133.52,0.04724877]
[1725494924910,3.7916569,133.54,133.52,3.79214877]
[1725494926308,3.7916569,133.54,133.52,0.04724877]
[1725494928013,3.7916569,133.54,133.52,11.55724877]
[1725494928410,3.7916569,133.54,133.52,15.30204877]
[1725494929211,0.0472569,133.54,133.52,15.30204877]
[1725494930016,0.0472569,133.54,133.53,11.51]
[1725494935523,3.7915569,133.54,133.53,11.51]
[1725494935924,0.0472569,133.54,133.53,11.51]
[1725494937925,3.7917569,133.54,133.52,0.04724877]
[1725494938125,3.7917569,133.54,133.52,11.55724877]
[1725494941823,3.7446,133.53,133.52,0.04724877]
[1725494942429,3.7449,133.52,133.49,15.2557]
[1725494942825,0.0472569,133.54,133.49,11.51]
[1725494943027,0.0472569,133.54,133.51,11.51]
[1725494943530,3.7447,133.53,133.51,11.56197804]
[1725494945636,0.0472569,133.54,133.52,11.51]
[1725494945637,3.7917569,133.54,133.52,11.51]
[1725494950325,0.0472569,133.54,133.52,15.2549]
[1725494950527,0.0472569,133.54,133.52,11.51]
[1725494950835,3.7434,133.58,133.55,3.7439]
[1725494951033,3.7434,133.58,133.57,11.51]
[1725494953634,0.05755155,133.59,133.57,11.51]
[1725494955338,3.7432,133.58,133.57,11.51]
[1725494957337,3.7435,133.57,133.56,0.05477785]
[1725494957540,0.05755155,133.59,133.53,11.51]
[1725494957541,11.51,133.59,133.53,11.51]
[1725494957836,3.744,133.56,133.53,15.2546]
[1725494958630,3.80056218,133.56,133.53,15.30706853]
[1725494959336,3.7441,133.55,133.53,11.56246853]
[1725494964849,3.80046218,133.56,133.54,11.51]
[1725494966746,0.05656218,133.56,133.54,15.2543]
[1725494967251,0.05656218,133.56,133.55,11.51]
[1725494967647,0.05656218,133.56,133.55,15.2541]
[1725494974658,0.05656218,133.56,133.55,11.51]
[1725494975158,0.05656218,133.56,133.54,3.7442]
[1725494975159,0.05656218,133.56,133.54,11.51]
[1725494976255,3.7443,133.54,133.53,0.05246853]
[1725494976458,0.05656218,133.56,133.53,0.05246853]
[1725494976659,11.56656218,133.56,133.53,0.05246853]
[1725494976861,0.05656218,133.56,133.53,0.05246853]
[1725494977752,3.7442,133.55,133.53,0.05246853]
[1725494978665,0.05656218,133.56,133.53,11.56246853]
[1725494978666,3.80046218,133.56,133.53,11.56246853]
[1725494979367,0.05656218,133.56,133.54,11.51]
[1725494980158,0.05656218,133.56,133.54,15.2541]
[1725494980358,0.05656218,133.56,133.54,11.51]
[1725494980759,0.05656218,133.56,133.55,3.7441]
[1725494983471,3.7427,133.6,133.55,3.7441]
[1725494983770,3.7427,133.6,133.58,11.51]
[1725494984464,3.79985382,133.6,133.58,11.5663261]
[1725494984864,0.05715382,133.6,133.58,11.5663261]
[1725494986365,3.79985382,133.6,133.58,11.5663261]
[1725494988164,3.7429,133.59,133.58,0.0563261]
[1725494992272,3.742,133.63,133.58,11.5663261]
[1725494992477,22.5,133.68,133.58,0.0563261]
[1725494992478,1.4024,133.65,133.58,0.0563261]
[1725494992767,12.9124,133.65,133.58,11.5663261]
[1725494993168,3.7423,133.62,133.58,11.5663261]
[1725494993369,0.04881742,133.61,133.58,11.5663261]
[1725494995277,0.04881742,133.61,133.58,15.3093261]
[1725494999376,0.04881742,133.61,133.59,11.51]
[1725495000487,0.04881742,133.61,133.58,0.0563261]
[1725495001285,3.7428,133.6,133.58,0.0563261]
[1725495001683,3.7428,133.6,133.58,11.5663261]
[1725495002085,0.04881742,133.61,133.58,11.5663261]
[1725495002389,3.79131742,133.61,133.58,11.5663261]
[1725495003293,0.04881742,133.61,133.59,11.51]
[1725495003587,0.04881742,133.61,133.6,11.51]
[1725495004285,0.04881742,133.61,133.6,15.2527]
[1725495006081,0.04881742,133.61,133.58,0.0563261]
[1725495006291,0.04881742,133.61,133.58,11.5663261]
[1725495006684,3.79141742,133.61,133.58,11.5663261]
[1725495006883,0.04881742,133.61,133.58,11.5663261]
[1725495007487,0.04881742,133.61,133.58,0.0563261]
[1725495007488,3.7429,133.59,133.58,0.0563261]
[1725495011391,3.7427,133.6,133.58,0.0563261]